fUST/lending_fUST_20250813
["ID","MTS","AMOUNT","RATE_DAILY","PERIOD"]
[378856365,1755053444389,-500.88930733,0.00022021,2]
[378856366,1755053444398,-1000.0,0.00022021,2]
[378856367,1755053444407,-1000.0,0.00022021,2]
[378856368,1755053444417,-1001.26504243,0.00022021,2]
[378856369,1755053444426,-1000.0,0.00022021,2]
[378856370,1755053444436,-1000.0,0.00022021,2]
[378856371,1755053444445,-500.54007216,0.00022021,2]
[378856372,1755053444454,-1000.0,0.00022021,2]
[378856373,1755053444464,-1001.88008736,0.00022021,2]
[378856374,1755053444474,-1000.0,0.00022021,2]
[378856375,1755053444483,-1000.0,0.00022021,2]
[378856376,1755053444492,-1000.0,0.00022021,2]
[378856377,1755053444502,-500.8503291,0.00022021,2]
[378856378,1755053444512,-501.30889282,0.00022021,2]
[378856379,1755053444521,-501.07241622,0.00022021,2]
[378856380,1755053444531,-1000.9478934,0.00022021,2]
[378856381,1755053444540,-1000.0,0.00022021,2]
[378856382,1755053444550,-1001.01715711,0.00022021,2]
[378856383,1755053444560,-1000.0,0.00022021,2]
[378856384,1755053444570,-1000.0,0.00022021,2]
[378856385,1755053444579,-1000.0,0.00022021,2]
[378856386,1755053444589,-1000.0,0.00022021,2]
[378856387,1755053444599,-1000.0,0.00022021,2]
[378856388,1755053444608,-1094.04779608,0.00022021,2]
[378856389,1755053444617,-500.81348602,0.00022021,2]
[378856390,1755053444626,-1000.0,0.00022021,2]
[378856391,1755053444638,-500.78890042,0.00022021,2]
[378856392,1755053444647,-1000.0,0.00022021,2]
[378856393,1755053444658,-1000.0,0.00022021,2]
[378856394,1755053444667,-1000.0,0.00022021,2]
[378856395,1755053444676,-1000.0,0.00022021,2]
[378856396,1755053444686,-1001.74183705,0.00022021,2]
[378856397,1755053444695,-500.92954421,0.00022021,2]
[378856398,1755053444704,-1000.0,0.00022021,2]
[378856399,1755053444715,-396.3,0.00022042,3]
[378856400,1755053444724,-3000.0,0.00022112,2]
[378856401,1755053444734,-3000.0,0.00022112,2]
[378856402,1755053444743,-394.0,0.00022124,2]
[378856403,1755053444752,-573.0,0.00022192,7]
[378856404,1755053444881,-151.0,0.000222,2]
[378856405,1755053444892,-19187.29552238,0.000222,2]
[378856406,1755053444901,-3000.0,0.00022212,2]
[378856407,1755053444911,-520.0,0.00022213,2]
[378856408,1755053444921,-807.0,0.00022213,2]
[378856409,1755053444930,-55607.39613722,0.000223,7]
[378856410,1755053444943,-849.80179425,0.000223,7]
[378856411,1755053445098,750.32,0.00029999,120]
[378856412,1755053445154,460.0,0.00029999,120]
[378856420,1755053446173,449.65593307,0.00029999,120]
[378856427,1755053446239,-510.2507475,0.000223,7]
[378856429,1755053446251,-304.04379256,0.000223,7]
[378856435,1755053446304,-617.77297548,0.000223,7]
[378856565,1755053447576,1667.77,0.00029999,120]
[378856691,1755053448809,460.0,0.00029999,120]
[378856745,1755053449793,460.0,0.00029999,120]
[378856746,1755053451067,473.5417022,0.00029999,120]
[378856747,1755053452946,460.0,0.00029999,120]
[378856748,1755053453814,460.0,0.00029999,120]
[378856749,1755053454656,460.0,0.00029999,120]
[378856750,1755053456670,461.16600876,0.00029999,120]
[378856751,1755053457307,460.0,0.00029999,120]
[378856752,1755053457392,460.0,0.00029999,120]
[378856753,1755053457905,466.50701258,0.00029999,120]
[378856754,1755053462419,460.0,0.00029999,120]
[378856755,1755053462566,460.0,0.00029999,120]
[378856756,1755053463384,460.0,0.00029999,120]
[378856757,1755053465369,1009.9,0.00029999,120]
[378856758,1755053467494,460.0,0.00029999,120]
[378856759,1755053468355,473.86251744,0.00029999,120]
[378856760,1755053469019,460.0,0.00029999,120]
[378856761,1755053470048,479.74718418,0.00029999,120]
[378856762,1755053470949,460.0,0.00029999,120]
[378856763,1755053473216,500.0,0.00029999,120]
[378856764,1755053473458,517.4991079,0.00029999,120]
[378856765,1755053473772,460.0,0.00029999,120]
[378856766,1755053475087,460.0,0.00029999,120]
[378856767,1755053477107,460.0,0.00029999,120]
[378856768,1755053477277,283.99093187,0.00029999,120]
[378856769,1755053483480,1554.11,0.00029999,120]
[378856770,1755053483565,460.0,0.00029999,120]
[378856771,1755053484488,460.0,0.00029999,120]
[378856772,1755053486146,469.87508563,0.00029999,120]
[378856773,1755053487290,460.0,0.00029999,120]
[378856774,1755053488558,460.0,0.00029999,120]
[378856775,1755053492626,461.8218934,0.00029999,120]
[378856776,1755053494098,386.5177658,0.00029999,120]
[378856777,1755053494162,460.0,0.00029999,120]
[378856778,1755053497855,460.0,0.00029999,120]
[378856779,1755053498021,460.0,0.00029999,120]
[378856780,1755053498170,460.0,0.00029999,120]
[378856781,1755053498667,460.0,0.00029999,120]
[378856782,1755053498774,460.0,0.00029999,120]
[378856783,1755053499016,460.0,0.00029999,120]
[378856784,1755053500565,460.0,0.00029999,120]
[378856785,1755053501474,460.0,0.00029999,120]
[378856786,1755053501580,461.56400768,0.00029999,120]
[378856787,1755053501708,539.76,0.00029999,120]
[378856788,1755053503661,460.0,0.00029999,120]
[378856789,1755053504000,460.0,0.00029999,120]
[378856790,1755053505470,478.91546477,0.00029999,120]
[378856791,1755053505578,464.6841075,0.00029999,120]
[378856792,1755053507508,460.0,0.00029999,120]
[378856793,1755053508617,508.53,0.00029999,120]
[378856794,1755053510638,460.0,0.00029999,120]
[378856795,1755053510783,460.0,0.00029999,120]
[378856796,1755053512653,460.0,0.00029999,120]
[378856797,1755053513129,293.7937881,0.00029999,120]
[378856798,1755053513952,460.0,0.00029999,120]
[378856799,1755053514983,460.0,0.00029999,120]
[378856800,1755053516214,1204.33,0.00029999,120]
[378856801,1755053519609,1080.88,0.00029999,120]
[378856802,1755053521175,461.45417233,0.00029999,120]
[378856803,1755053522194,460.0,0.00029999,120]
[378856804,1755053524658,467.93,0.00029999,120]
[378856805,1755053524918,460.0,0.00029999,120]
[378856806,1755053526507,486.55905038,0.00029999,120]
[378856807,1755053527539,318.20326898,0.00029999,120]
[378856808,1755053529680,477.50804337,0.00029999,120]
[378856809,1755053529754,460.0,0.00029999,120]
[378856810,1755053531967,460.0,0.00029999,120]
[378856811,1755053532543,463.15466199,0.00029999,120]
[378856812,1755053532600,460.0,0.00029999,120]
[378856813,1755053532655,460.0,0.00029999,120]
[378856814,1755053533200,460.0,0.00029999,120]
[378856815,1755053533576,460.0,0.00029999,120]
[378856816,1755053536401,460.0,0.00029999,120]
[378856817,1755053537090,464.26481472,0.00029999,120]
[378856818,1755053538024,460.0,0.00029999,120]
[378856819,1755053538083,460.0,0.00029999,120]
[378856820,1755053538263,462.19055063,0.00029999,120]
[378856821,1755053544154,460.0,0.00029999,120]
[378856822,1755053546038,465.43534734,0.00029999,120]
[378856823,1755053546517,460.0,0.00029999,120]
[378856824,1755053546583,460.0,0.00029999,120]
[378856825,1755053550156,460.0,0.00029999,120]
[378856826,1755053556185,460.0,0.00029999,120]
[378856827,1755053556374,460.0,0.00029999,120]
[378856828,1755053558969,461.75340939,0.00029999,120]
[378856829,1755053560133,460.0,0.00029999,120]
[378856830,1755053560774,460.0,0.00029999,120]
[378856831,1755053561343,460.0,0.00029999,120]
[378856832,1755053561441,1043.98,0.00029999,120]
[378856833,1755053562738,460.0,0.00029999,120]
[378856834,1755053562794,460.0,0.00029999,120]
[378856835,1755053564534,5220.98,0.00029999,120]
[378856836,1755053566077,460.0,0.00029999,120]
[378856837,1755053570065,500.0,0.00029999,120]
[378856838,1755053570300,500.0,0.00029999,120]
[378856839,1755053570542,500.0,0.00029999,120]
[378856840,1755053571244,1237.68,0.00029999,120]
[378856841,1755053571690,460.0,0.00029999,120]
[378856842,1755053573040,460.0,0.00029999,120]
[378856843,1755053574080,460.0,0.00029999,120]
[378856844,1755053574320,460.0,0.00029999,120]
[378856845,1755053574860,466.31965761,0.00029999,120]
[378856846,1755053577330,460.0,0.00029999,120]
[378856847,1755053579350,460.0,0.00029999,120]
[378856848,1755053580599,460.0,0.00029999,120]
[378856849,1755053580768,460.0,0.00029999,120]
[378856850,1755053580903,460.0,0.00029999,120]
[378856851,1755053580971,460.0,0.00029999,120]
[378856852,1755053581626,460.0,0.00029999,120]
[378856853,1755053583839,460.0,0.00029999,120]
[378856854,1755053584342,460.0,0.00029999,120]
[378856855,1755053584768,589.52,0.00029999,120]
[378856856,1755053587494,460.0,0.00029999,120]
[378856857,1755053588031,460.0,0.00029999,120]
[378856858,1755053588265,460.0,0.00029999,120]
[378856859,1755053588513,890.53,0.00029999,120]
[378856860,1755053588991,460.0,0.00029999,120]
[378856861,1755053591556,460.0,0.00029999,120]
[378856862,1755053593511,460.0,0.00029999,120]
[378856863,1755053595776,460.0,0.00029999,120]
[378856864,1755053600789,460.0,0.00029999,120]
[378856865,1755053601075,460.0,0.00029999,120]
[378856866,1755053602335,460.0,0.00029999,120]
[378856867,1755053604472,460.0,0.00029999,120]
[378856868,1755053604538,460.0,0.00029999,120]
[378856869,1755053605043,460.0,0.00029999,120]
[378856870,1755053606547,460.0,0.00029999,120]
[378856871,1755053607245,460.0,0.00029999,120]
[378856872,1755053607556,460.0,0.00029999,120]
[378856873,1755053609508,460.0,0.00029999,120]
[378856874,1755053611547,460.0,0.00029999,120]
[378856875,1755053612595,460.0,0.00029999,120]
[378856876,1755053613388,2883.5,0.00029999,120]
[378856877,1755053615310,460.0,0.00029999,120]
[378856878,1755053616015,463.81672912,0.00029999,120]
[378856879,1755053617058,460.0,0.00029999,120]
[378856880,1755053617536,460.0,0.00029999,120]
[378856881,1755053620702,462.09091175,0.00029999,120]
[378856882,1755053621101,460.0,0.00029999,120]
[378856883,1755053621156,506.7330967,0.00029999,120]
[378856884,1755053622650,460.0,0.00029999,120]
[378856885,1755053622962,1409.95,0.00029999,120]
[378856886,1755053623248,460.0,0.00029999,120]
[378856887,1755053624222,460.0,0.00029999,120]
[378856888,1755053625233,1539.76975713,0.0003,120]
[378856889,1755053628868,460.0,0.00029999,120]
[378856890,1755053629327,460.0,0.00029999,120]
[378856891,1755053630715,7708.06,0.00029999,120]
[378856892,1755053631305,460.0,0.00029999,120]
[378856893,1755053632598,460.0,0.00029999,120]
[378856894,1755053638040,460.0,0.00029999,120]
[378856895,1755053638812,465.77453024,0.00029999,120]
[378856896,1755053639360,460.0,0.00029999,120]
[378856897,1755053639418,460.0,0.00029999,120]
[378856898,1755053639720,460.0,0.00029999,120]
[378856899,1755053639920,460.0,0.00029999,120]
[378856900,1755053641000,460.0,0.00029999,120]
[378856901,1755053641054,460.0,0.00029999,120]
[378856902,1755053641503,460.0,0.00029999,120]
[378856903,1755053642515,460.0,0.00029999,120]
[378856904,1755053643578,460.0,0.00029999,120]
[378856905,1755053643658,522.85,0.00029999,120]
[378856906,1755053645504,460.0,0.00029999,120]
[378856907,1755053645821,460.0,0.00029999,120]
[378856908,1755053647020,460.0,0.00029999,120]
[378856909,1755053648772,460.0,0.00029999,120]
[378856910,1755053649510,460.0,0.00029999,120]
[378856911,1755053650171,460.0,0.00029999,120]
[378856912,1755053650857,460.0,0.00029999,120]
[378856913,1755053651415,460.0,0.00029999,120]
[378856914,1755053654112,460.0,0.00029999,120]
[378856915,1755053654339,460.0,0.00029999,120]
[378856916,1755053657797,460.0,0.00029999,120]
[378856917,1755053659164,477.43,0.00029999,120]
[378856918,1755053660563,460.0,0.00029999,120]
[378856919,1755053660619,468.63362535,0.00029999,120]
[378856920,1755053661286,556.94,0.00029999,120]
[378856921,1755053661722,460.0,0.00029999,120]
[378856922,1755053662721,460.0,0.00029999,120]
[378856923,1755053666307,460.0,0.00029999,120]
[378856924,1755053669212,460.0,0.00029999,120]
[378856925,1755053670365,460.0,0.00029999,120]
[378856926,1755053670866,461.19594158,0.00029999,120]
[378856927,1755053672057,460.0,0.00029999,120]
[378856928,1755053672747,460.0,0.00029999,120]
[378856929,1755053674109,500.0,0.00029999,120]
[378856930,1755053674387,500.0,0.00029999,120]
[378856931,1755053674548,460.0,0.00029999,120]
[378856932,1755053674648,512.16675611,0.00029999,120]
[378856933,1755053674893,460.0,0.00029999,120]
[378856934,1755053678041,460.0,0.00029999,120]
[378856935,1755053678187,460.0,0.00029999,120]
[378856936,1755053678588,460.0,0.00029999,120]
[378856937,1755053678935,438.64803992,0.00029999,120]
[378856938,1755053679493,427.00000168,0.00029999,120]
[378856939,1755053680565,460.0,0.00029999,120]
[378856940,1755053681766,460.0,0.00029999,120]
[378856941,1755053681823,460.0,0.00029999,120]
[378856942,1755053683256,460.0,0.00029999,120]
[378856943,1755053684222,460.0,0.00029999,120]
[378856944,1755053685062,460.0,0.00029999,120]
[378856945,1755053685364,460.0,0.00029999,120]
[378856946,1755053685799,460.0,0.00029999,120]
[378856947,1755053686589,460.0,0.00029999,120]
[378856948,1755053688019,1617.44,0.00029999,120]
[378856949,1755053688673,2869.35,0.00029999,120]
[378856950,1755053688742,594.56112637,0.00029999,120]
[378856951,1755053690115,460.0,0.00029999,120]
[378856952,1755053690654,460.0,0.00029999,120]
[378856953,1755053690716,474.63487362,0.00029999,120]
[378856954,1755053694213,460.0,0.00029999,120]
[378856955,1755053695083,460.0,0.00029999,120]
[378856956,1755053695500,460.0,0.00029999,120]
[378856957,1755053700252,460.0,0.00029999,120]
[378856958,1755053701007,460.0,0.00029999,120]
[378856959,1755053701316,460.0,0.00029999,120]
[378856960,1755053703181,460.0,0.00029999,120]
[378856961,1755053704930,200.0,0.00029999,120]
[378856962,1755053705252,979.47,0.00029999,120]
[378856963,1755053707427,485.79,0.00029999,120]
[378856964,1755053708576,500.0,0.00029999,120]
[378856965,1755053708852,500.0,0.00029999,120]
[378856966,1755053709019,460.0,0.00029999,120]
[378856967,1755053709144,504.9746631,0.00029999,120]
[378856968,1755053709452,460.0,0.00029999,120]
[378856969,1755053710827,460.0,0.00029999,120]
[378856970,1755053711604,460.0,0.00029999,120]
[378856971,1755053711820,705.0,0.00029999,120]
[378856972,1755053713338,465.29674672,0.00029999,120]
[378856973,1755053713459,460.0,0.00029999,120]
[378856974,1755053715118,2317.27,0.00029999,120]
[378856975,1755053715216,242.39755711,0.00029999,120]
[378856976,1755053715321,460.0,0.00029999,120]
[378856977,1755053716147,469.56400106,0.00029999,120]
[378856978,1755053719239,460.0,0.00029999,120]
[378856979,1755053719916,460.0,0.00029999,120]
[378856980,1755053721443,465.25768884,0.00029999,120]
[378856981,1755053721930,460.0,0.00029999,120]
[378856982,1755053722999,1532.77,0.00029999,120]
[378856983,1755053723063,460.0,0.00029999,120]
[378856984,1755053724957,462.76643485,0.00029999,120]
[378856985,1755053725301,460.0,0.00029999,120]
[378856986,1755053725455,460.0,0.00029999,120]
[378856987,1755053726531,460.0,0.00029999,120]
[378856988,1755053726867,465.21285782,0.00029999,120]
[378856989,1755053728094,460.0,0.00029999,120]
[378856990,1755053729821,682.39,0.00029999,120]
[378856991,1755053733295,460.0,0.00029999,120]
[378856992,1755053734023,517.27,0.00029999,120]
[378856993,1755053734648,967.82,0.00029999,120]
[378856994,1755053734903,460.0,0.00029999,120]
[378856995,1755053736368,460.0,0.00029999,120]
[378856996,1755053737689,460.0,0.00029999,120]
[378856997,1755053738137,460.0,0.00029999,120]
[378856998,1755053738586,465.41556321,0.00029999,120]
[378856999,1755053742645,460.0,0.00029999,120]
[378857000,1755053744368,460.0,0.00029999,120]
[378857001,1755053744979,515.28020885,0.00029999,120]
[378857002,1755053746106,460.0,0.00029999,120]
[378857003,1755053746208,460.0,0.00029999,120]
[378857004,1755053746367,460.0,0.00029999,120]
[378857005,1755053747688,460.0,0.00029999,120]
[378857006,1755053750933,460.0,0.00029999,120]
[378857007,1755053752163,460.0,0.00029999,120]
[378857008,1755053752378,461.23744264,0.00029999,120]
[378857009,1755053754399,460.0,0.00029999,120]
[378857010,1755053754635,578.72816524,0.00029999,120]
[378857011,1755053755283,460.0,0.00029999,120]
[378857012,1755053755450,474.63044469,0.00029999,120]
[378857013,1755053755851,460.0,0.00029999,120]
[378857014,1755053755996,460.0,0.00029999,120]
[378857015,1755053757066,461.6951706,0.00029999,120]
[378857016,1755053758438,460.0,0.00029999,120]
[378857017,1755053758527,1078.62,0.00029999,120]
[378857018,1755053759128,460.0,0.00029999,120]
[378857019,1755053759295,199.03002948,0.00029999,120]
[378857020,1755053764323,460.0,0.00029999,120]
[378857021,1755053764482,460.0,0.00029999,120]
[378857022,1755053764896,460.0,0.00029999,120]
[378857023,1755053765094,460.0,0.00029999,120]
[378857024,1755053767068,161.466723,0.00013699,2]
[378857026,1755053770109,1269.15,0.00029999,120]
[378857027,1755053771595,460.0,0.00029999,120]
[378857028,1755053772065,460.0,0.00029999,120]
[378857029,1755053772330,460.0,0.00029999,120]
[378857030,1755053775944,460.0,0.00029999,120]
[378857031,1755053777516,462.58697411,0.00029999,120]
[378857032,1755053777930,460.0,0.00029999,120]
[378857033,1755053779397,463.20510257,0.00029999,120]
[378857034,1755053781130,460.0,0.00029999,120]
[378857035,1755053782145,487.34,0.00029999,120]
[378857036,1755053787042,460.0,0.00029999,120]
[378857037,1755053788840,460.0,0.00029999,120]
[378857038,1755053790966,1000.48,0.00029999,120]
[378857039,1755053793870,460.0,0.00029999,120]
[378857040,1755053793995,5819.8,0.00029999,120]
[378857041,1755053795755,470.84770175,0.00029999,120]
[378857042,1755053798703,460.0,0.00029999,120]
[378857043,1755053799857,460.0,0.00029999,120]
[378857044,1755053801075,460.0,0.00029999,120]
[378857045,1755053802014,462.49929767,0.00029999,120]
[378857046,1755053806824,460.0,0.00029999,120]
[378857047,1755053809291,466.00460418,0.00029999,120]
[378857048,1755053811122,460.0,0.00029999,120]
[378857049,1755053812270,460.0,0.00029999,120]
[378857050,1755053815323,460.0,0.00029999,120]
[378857051,1755053816264,1186.11,0.00029999,120]
[378857052,1755053818070,460.0,0.00029999,120]
[378857053,1755053818287,853.42,0.00029999,120]
[378857054,1755053820127,584.13,0.00029999,120]
[378857055,1755053820400,425.43145399,0.00029999,120]
[378857056,1755053822067,460.0,0.00029999,120]
[378857057,1755053828103,327.05199036,0.00029999,120]
[378857058,1755053828413,460.0,0.00029999,120]
[378857059,1755053829630,460.0,0.00029999,120]
[378857060,1755053830559,460.0,0.00029999,120]
[378857061,1755053834426,463.13076232,0.00029999,120]
[378857062,1755053834970,534.716525,0.00029999,120]
[378857063,1755053835389,460.0,0.00029999,120]
[378857064,1755053836370,460.0,0.00029999,120]
[378857065,1755053838904,460.0,0.00029999,120]
[378857066,1755053839348,460.0,0.00029999,120]
[378857067,1755053839641,460.0,0.00029999,120]
[378857068,1755053839748,460.0,0.00029999,120]
[378857069,1755053840288,465.24793577,0.00029999,120]
[378857070,1755053841196,460.0,0.00029999,120]
[378857071,1755053841318,460.0,0.00029999,120]
[378857072,1755053841736,470.9839811,0.00029999,120]
[378857073,1755053842976,2782.52,0.00029999,120]
[378857074,1755053845216,467.29771907,0.00029999,120]
[378857075,1755053846915,460.0,0.00029999,120]
[378857076,1755053851087,460.0,0.00029999,120]
[378857077,1755053851211,462.64146324,0.00029999,120]
[378857078,1755053851608,460.0,0.00029999,120]
[378857079,1755053853105,467.80402415,0.00029999,120]
[378857080,1755053853404,1351.2,0.00029999,120]
[378857081,1755053859001,465.10469996,0.00029999,120]
[378857082,1755053860654,348.0522099,0.00029999,120]
[378857083,1755053861322,463.64662362,0.00029999,120]
[378857084,1755053864528,460.0,0.00029999,120]
[378857085,1755053875943,7447.35,0.00029999,120]
[378857086,1755053876812,464.24996113,0.00029999,120]
[378857087,1755053877043,460.0,0.00029999,120]
[378857088,1755053880852,460.0,0.00029999,120]
[378857089,1755053883068,460.0,0.00029999,120]
[378857090,1755053884194,460.0,0.00029999,120]
[378857091,1755053884721,460.0,0.00029999,120]
[378857092,1755053886725,543.25017143,0.00029999,120]
[378857093,1755053888331,501.06,0.00029999,120]
[378857094,1755053892741,465.50343201,0.00029999,120]
[378857095,1755053894025,460.0,0.00029999,120]
[378857096,1755053897408,476.71287846,0.00029999,120]
[378857097,1755053903138,460.0,0.00029999,120]
[378857098,1755053904730,533.73,0.00029999,120]
[378857099,1755053905264,460.0,0.00029999,120]
[378857100,1755053910559,460.0,0.00029999,120]
[378857101,1755053914386,460.0,0.00029999,120]
[378857102,1755053914447,460.0,0.00029999,120]
[378857103,1755053914504,460.0,0.00029999,120]
[378857104,1755053917058,460.0,0.00029999,120]
[378857105,1755053918578,1569.21,0.00029999,120]
[378857106,1755053919319,460.0,0.00029999,120]
[378857107,1755053921061,581.06,0.00029999,120]
[378857108,1755053922833,460.0,0.00029999,120]
[378857109,1755053924562,460.0,0.00029999,120]
[378857110,1755053925099,464.37084329,0.00029999,120]
[378857111,1755053925240,750.38,0.00029999,120]
[378857112,1755053930860,2749.79,0.00029999,120]
[378857113,1755053930923,460.48499515,0.00029999,120]
[378857114,1755053931083,460.0,0.00029999,120]
[378857115,1755053931522,331.56,0.00029999,120]
[378857116,1755053933861,460.0,0.00029999,120]
[378857118,1755053936239,460.0,0.00029999,120]
[378857120,1755053938446,460.0,0.00029999,120]
[378857121,1755053941911,500.63276536,0.00029999,120]
[378857122,1755053941983,460.0,0.00029999,120]
[378857123,1755053944327,460.0,0.00029999,120]
[378857124,1755053946946,460.0,0.00029999,120]
[378857125,1755053948275,460.0,0.00029999,120]
[378857126,1755053948328,460.0,0.00029999,120]
[378857127,1755053949936,551.91860983,0.00029999,120]
[378857128,1755053951730,460.0,0.00029999,120]
[378857129,1755053951899,460.0,0.00029999,120]
[378857130,1755053953903,460.0,0.00029999,120]
[378857131,1755053954388,460.0,0.00029999,120]
[378857132,1755053956644,460.0,0.00029999,120]
[378857133,1755053956950,1517.58,0.00029999,120]
[378857134,1755053957319,2220.71,0.00029999,120]
[378857135,1755053958323,460.0,0.00029999,120]
[378857136,1755053962667,495.72,0.00029999,120]
[378857137,1755053964363,464.68125591,0.00029999,120]
[378857138,1755053965306,460.0,0.00029999,120]
[378857139,1755053967997,460.0,0.00029999,120]
[378857140,1755053969708,460.0,0.00029999,120]
[378857141,1755053970923,463.65954657,0.00029999,120]
[378857142,1755053971664,460.0,0.00029999,120]
[378857143,1755053976035,460.0,0.00029999,120]
[378857144,1755053977190,460.0,0.00029999,120]
[378857145,1755053977713,927.49,0.00029999,120]
[378857146,1755053977783,460.0,0.00029999,120]
[378857147,1755053979474,460.0,0.00029999,120]
[378857148,1755053981846,461.10284112,0.00029999,120]
[378857149,1755053983795,460.0,0.00029999,120]
[378857150,1755053986900,460.0,0.00029999,120]
[378857151,1755053988461,460.0,0.00029999,120]
[378857152,1755053989715,460.0,0.00029999,120]
[378857153,1755053990182,1033.67,0.00029999,120]
[378857154,1755053993603,460.0,0.00029999,120]
[378857155,1755053993985,460.0,0.00029999,120]
[378857156,1755053996170,460.0,0.00029999,120]
[378857157,1755053999337,460.0,0.00029999,120]
[378857158,1755054002797,460.0,0.00029999,120]
[378857159,1755054003386,460.0,0.00029999,120]
[378857160,1755054004077,460.0,0.00029999,120]
[378857161,1755054006352,464.51543753,0.00029999,120]
[378857162,1755054008263,460.0,0.00029999,120]
[378857163,1755054009112,460.0,0.00029999,120]
[378857164,1755054009200,460.0,0.00029999,120]
[378857165,1755054010368,460.0,0.00029999,120]
[378857166,1755054010724,460.0,0.00029999,120]
[378857167,1755054012093,460.0,0.00029999,120]
[378857168,1755054012497,460.0,0.00029999,120]
[378857169,1755054012563,1216.27,0.00029999,120]
[378857170,1755054015890,460.0,0.00029999,120]
[378857171,1755054020189,460.0,0.00029999,120]
[378857172,1755054020299,460.0,0.00029999,120]
[378857173,1755054022429,958.79,0.00029999,120]
[378857174,1755054024755,460.0,0.00029999,120]
[378857175,1755054025850,460.0,0.00029999,120]
[378857176,1755054026946,467.03,0.00029999,120]
[378857177,1755054028089,460.0,0.00029999,120]
[378857178,1755054028173,490.53,0.00029999,120]
[378857179,1755054031371,460.0,0.00029999,120]
[378857180,1755054036296,460.0,0.00029999,120]
[378857181,1755054036913,462.51663686,0.00029999,120]
[378857182,1755054040279,5577.31,0.00029999,120]
[378857183,1755054042166,460.0,0.00029999,120]
[378857184,1755054042520,460.0,0.00029999,120]
[378857185,1755054045049,460.0,0.00029999,120]
[378857186,1755054052420,460.0,0.00029999,120]
[378857187,1755054052697,559.79,0.00029999,120]
[378857188,1755054058301,460.0,0.00029999,120]
[378857189,1755054059349,460.0,0.00029999,120]
[378857190,1755054060213,467.34901743,0.00029999,120]
[378857191,1755054061376,477.55773995,0.00029999,120]
[378857192,1755054062024,460.0,0.00029999,120]
[378857193,1755054065173,817.86,0.00029999,120]